Cogmind - Beta 9.6 @@@ ROGUE MODE // 2020.05.19 @ 00:59:52 // Halloween2019/Abominations Player: Judas Result: Destroyed by Lesser Abomination with Light Assault Rifle Performance ------------- Evolutions (0) 0 Regions Visited (1) 200 Robots Destroyed (5) 25 Value Destroyed (246) 246 Prototype IDs (0) 0 Alien Tech Used (0) 0 Bonus (0) 0 TOTAL SCORE: 471 Bonus ------- None Cogmind --------- Core Integrity 0/250 Matter 300/300 Energy 98/100 System Corruption 0% Temperature Cool (1) Movement Walking (150) Ox1 Location -10/Materials Parts ------- > --- POWER (1) -------- (None) > --- PROPULSION (2) --- Aluminum Leg > --- UTILITY (2) ------ Large Storage Unit Visual Processing Unit > --- WEAPON (2) ------- Medium Laser Light Assault Rifle > --- INVENTORY (10) --- Light Ion Engine Light Treads Light Treads Compact Wheel Compact Wheel Peak State ------------ > --- POWER ------------ Ion Engine > --- PROPULSION ------- Aluminum Leg Aluminum Leg > --- UTILITY ---------- Small Storage Unit Weight Redist. System > --- WEAPON ----------- Medium Laser Light Assault Rifle > --- INVENTORY -------- Light Ion Engine Light Treads Light Treads Compact Wheel Compact Wheel Medium Laser [Rating: 8] Favorites ----------- Power Ion Engine Engine Ion Engine Propulsion Aluminum Leg Leg Aluminum Leg Utility Small Storage Unit Device Weight Redist. System Storage Small Storage Unit Processor Visual Processing Unit Weapon Light Assault Rifle Energy Gun Medium Laser Ballistic Gun Light Assault Rifle Build | -11 -10 ------- Run | Scr Mat Slots Evolved . | . . Power . | . . Propulsion . | . . Utility . | . . Weapon . | . . Parts Attached 6 | . 6 Power . | . . Engine . | . . Core . | . . Reactor . | . . Propulsion 1 | . 1 Treads . | . . Leg 1 | . 1 Wheel . | . . Hover . | . . Flight . | . . Utility 3 | . 3 Device 1 | . 1 Storage 1 | . 1 Processor 1 | . 1 Hackware . | . . Protection . | . . Artifact . | . . Weapon 2 | . 2 Energy Gun 2 | . 2 Energy Cannon . | . . Ballistic Gun . | . . Ballistic Cannon . | . . Launcher . | . . Special Weapon . | . . Impact Weapon . | . . Slashing Weapon . | . . Piercing Weapon . | . . Special Melee Weapon . | . . Unidentified Prototypes . | . . Parts Lost 4 | . 4 Power 1 | . 1 Propulsion 1 | . 1 Utility . | . . Weapon 2 | . 2 Highest Loss Streak 3 | . 3 Average Slot Usage (%) 87 | . 87 Engine 12 | . 12 Leg 26 | . 26 Device 1 | . 1 Storage 14 | . 14 Processor 5 | . 5 Energy Gun 5 | . 5 Ballistic Gun 21 | . 21 Naked Turns . | . . Heaviest Build 24 | 11 24 Greatest Support 26 | 20 26 Greatest Overweight (x) 1 | . 1 Average Overweight (x) . | . . Largest Inventory Capacity 10 | 6 10 Average Capacity 7 | 6 7 Most Carried 6 | 6 6 Average Carried 5 | 6 5 Final Capacity 10 | 6 10 Final Carried 6 | 6 5 Class Distribution -------------------- 100% | Mutant Dominant Class ---------------- Mutant | -10/Materials Resources | -11 -10 ----------- Run | Scr Mat Matter Collected 353 | 194 159 Remotely . | . . Salvage Created 234 | 74 160 Parts 23 | 1 22 Haulers Intercepted . | . . Recyclers Shooed . | . . Parts Field Recycled . | . . Retrieved Matter . | . . Parts Self-Destructed . | . . Prevented . | . . Kills | -11 -10 ------- Run | Scr Mat Combat Hostiles Destroyed 4 | . 4 Guns 4 | . 4 Classes Destroyed 2 | 1 1 Recycler 1 | 1 . Abomination 4 | . 4 Best Kill Streak 2 | 1 2 Combat Bots Only 2 | . 2 Max Kills in Single Turn 1 | 1 1 Gunslinging . | . . Exploded . | . . Melee . | . . Uniques/NPCs Destroyed . | . . Combat | -11 -10 -------- Run | Scr Mat Damage Taken 1422 | . 1422 Core 255 | . 255 Absorbed by Shields . | . . Core Remaining (%) 100 | 100 . Volleys Fired 69 | 13 56 Largest 2 | 2 2 Hottest 70 | 40 70 Shots Fired 130 | 26 104 Gun 130 | 26 104 Cannon . | . . Launcher . | . . Special . | . . Kinetic 113 | 26 87 Thermal 17 | . 17 Explosive . | . . Electromagnetic . | . . Robot Hit Streak 40 | 3 40 Robot Miss Streak 4 | 4 2 Penetration Max . | . . Secondary Targets 2 | . 2 Max Gunslinging Chain 1 | . 1 Shots Hit Robots 97 | 12 85 Core Hits 33 | 3 30 Critical Hits . | . . Critical Kills . | . . Critical Parts Destroyed . | . . Melee Attacks . | . . Impact . | . . Slashing . | . . Piercing . | . . Sneak Attacks . | . . Combat Hostiles . | . . Follow-up Attacks . | . . Damage Inflicted 868 | 83 785 Guns 868 | 83 785 Cannons . | . . Explosions . | . . Melee . | . . Ramming . | . . Kinetic 664 | 83 581 Thermal 204 | . 204 Explosive . | . . Electromagnetic . | . . Impact . | . . Slashing . | . . Piercing . | . . Highest Corruption . | . . Average Corruption . | . . Corruption Purged . | . . Overload Shots . | . . Overflow Damage . | . . Projectiles . | . . Explosions . | . . Melee . | . . Knockbacks . | . . Impact . | . . Kinetic . | . . Secondary . | . . Self-Inflicted Damage . | . . Shots . | . . Rammed . | . . Targets Rammed . | . . Kicked . | . . Crushed . | . . Highest Temperature 110 | . 110 Average Temperature 37 | . 37 Received Heat Transfer 519 | . 519 Siege Activations . | . . Robots Corrupted . | . . Combat Hostiles . | . . Parts Fried . | . . Impact Corruptions . | . . Robots Melted . | . . Combat Hostiles . | . . Parts Melted . | . . Heat Transferred 117 | . 117 Parts Sabotaged . | . . Parts Stolen . | . . Parts Stripped . | . . Power Chain Reactions . | . . Missiles Intercepted . | . . Alert | -11 -10 ------- Run | Scr Mat Peak Influence 15 | 5 15 Average Influence 1 | 1 2 Maximum Alert Level . | . . Low Security (%) 100 | 100 100 Level 1 . | . . Level 2 . | . . Level 3 . | . . Level 4 . | . . Level 5 . | . . High Security . | . . Max Security . | . . Squads Dispatched 4 | . 4 Investigation 2 | . 2 Extermination . | . . Reinforcement . | . . Assault 2 | . 2 Garrison . | . . Intercept . | . . Construction Impeded . | . . Haulers Reinforced . | . . Stealth | -11 -10 --------- Run | Scr Mat Distress Signals 2 | . 2 Communications Jammed . | . . Distress Signals . | . . Times Spotted 14 | . 14 Peak Tracking Total 5 | . 5 Tactical Retreats 2 | . 2 Traps | -11 -10 ------- Run | Scr Mat Traps Triggered . | . . Indirectly . | . . Trap Hack Attempts . | . . Triggered . | . . Disarmed . | . . Reprogrammed . | . . Reused . | . . Traps Extracted . | . . Installed . | . . Triggered . | . . Machines | -11 -10 ---------- Run | Scr Mat Machines Disabled . | . . Max in Single Turn . | . . Machines Sabotaged . | . . Garrisons Compromised . | . . Overloaded Fab Kills . | . . Fab Network Shutdowns . | . . Hacking | -11 -10 --------- Run | Scr Mat Machines Accessed . | . . Terminals . | . . Fabricators . | . . Repair Stations . | . . Recycling Units . | . . Scanalyzers . | . . Garrison Access . | . . Total Hacks . | . . Successful . | . . Failed . | . . Catastrophic . | . . Database Lockouts . | . . Manual . | . . Terminals . | . . Fabricators . | . . Repair Stations . | . . Recycling Units . | . . Scanalyzers . | . . Garrison Access . | . . Terminal Hacks . | . . Fabricator Hacks . | . . Repair Station Hacks . | . . Recycling Unit Hacks . | . . Scanalyzer . | . . Garrison Access Hacks . | . . Unauthorized Hacks . | . . Terminals . | . . Fabricators . | . . Repair Stations . | . . Recycling Units . | . . Scanalyzers . | . . Garrison Access . | . . Data Cores Recovered . | . . Used . | . . Hacking Detections . | . . Full Trace Events . | . . Feedback Events . | . . Feedback Blocked . | . . Robot Schematics Acquired . | . . Robots Built . | . . Matter . | . . Time . | . . Total Robot Build Rating . | . . Part Schematics Acquired . | . . Parts Built . | . . Matter . | . . Time . | . . Total Part Build Rating . | . . Parts Repaired . | . . Time . | . . Parts Recycled . | . . Recycled Matter . | . . Retrieved Matter . | . . Retrieved Components . | . . Parts Scanalyzed . | . . Part Schematics Acquired . | . . Parts Damaged . | . . Bothacking | -11 -10 ------------ Run | Scr Mat Used RIF Installer . | . . Robots Hacked . | . . Non-combat . | . . Combat . | . . Robot Hacks Applied . | . . Relay Couplers Released . | . . Robots Rewired . | . . Allies Hacked . | . . Hacks Repelled . | . . Allies | -11 -10 -------- Run | Scr Mat Total Allies . | . . Largest Group . | . . Highest-Rated Group . | . . Highest-Rated Ally . | . . Total Orders . | . . Ally Attacks . | . . Total Damage . | . . Kills . | . . Allies Corrupted . | . . Allies Melted . | . . Intel | -11 -10 ------- Run | Scr Mat Robot Analysis Total . | . . Derelict Logs Recovered . | . . Drone Launches . | . . Drone Recoveries . | . . Exploration | -11 -10 ------------- Run | Scr Mat Turns Passed 399 | 67 332 Spaces Moved 146 | 28 118 Core . | . . Treads . | . . Legs 146 | 28 118 Wheels . | . . Hover . | . . Flight . | . . Fastest Speed 120 | 120 120 Average Speed 126 | 120 128 Slowest Speed 150 | 120 150 Overloaded Moves . | . . Propulsion Burnouts . | . . Robots Hopped . | . . Cave-ins Triggered . | . . Exploration Rate (%) 15 | 5 25 Regions Visited 1 Branch Regions . Pre-discovered Areas . | . . Known Exits Taken . | . . Unknown Exits Taken 1 | 1 . Scrap Searched . | . . Spaces Dug . | . . Terrain Destroyed . | . . Melee . | . . Projectile . | . . AOE . | . . Actions | -11 -10 --------- Run | Scr Mat Total 229 | 40 189 Wait 6 | . 6 Move 145 | 27 118 Hop . | . . Pick Up . | . . Fast Attach 3 | . 3 Attach 1 | . 1 Detach . | . . Swap 2 | . 2 Drop 3 | . 3 Fire 69 | 13 56 Melee . | . . Ram . | . . Kick . | . . Crush . | . . Escape Stasis . | . . Rewire . | . . Trap . | . . Miscellaneous . | . . Route ------- -11/Scrapyard -10/Materials History --------- Turn | Location | Event 7 | -11/Scrapyard | Discovered new exit (range 3) 68 | -11/Scrapyard | Entered Materials 122 | -10/Materials | Discovered new exit (range 11) 303 | -10/Materials | Build established: Mutant 316 | -10/Materials | Core integrity fell below 50% 374 | -10/Materials | Core integrity fell below 20% 400 | -10/Materials | Destroyed by Lesser Abomination with Light Assault Rifle Last Messages --------------- 00368_ Med. Laser destroyed. 00369_ Lesser Abomination spits out Med. Matter Pod. 00369_ Lesser Abomination absorbs Hcp. Matter Pod. 00369_ Lesser Abomination absorbs Wheel. 00369_ Aluminum Leg destroyed. 00372_ Lesser Abomination spits out Sml. Storage Unit. 00372_ Lesser Abomination absorbs Med. Storage Unit. 00372_ Lesser Abomination absorbs Flight Unit. 00373_ Lesser Abomination absorbs Imp. Targeting Computer. 00373_ Ion Engine destroyed. 00373_ Lesser Abomination destroyed. 00373_ Switching to secondary target: Lesser Abomination. 00374_ Lesser Abomination spits out Med. Storage Unit. 00374_ Lesser Abomination absorbs Lrg. Storage Unit. 00376_ Lesser Abomination spits out Med. Matter Pod. 00376_ Lesser Abomination absorbs Med. Matter Pod. 00376_ Acquired 32 matter. 00378_ Acquired 1 matter. 00399_ Lesser Abomination sheds Disintegrating Anomaly. 00400_ Lesser Abomination absorbs Heat Sink. Map ----- +----------------------------------------------------+ | | | | | | | ????????????????????????????????? | | ????????????????????????????????? | | ????????????????????????????????? | | ????????????????????????????????? | | ????????????????????????????????? | | ????????????????????????????????? | | ????????????????????????????????? | | ????????????????????????????????? | | ????????????????????????????????? | | ???###?????##???????????????????? | | ???# = ??? #???????????????????? | | ???# """ #???????????????????? | | ???# """ #???????????????????? | | ???# """ #???????????????????? | | ???# #???????????????????? | | ???# """ #???????????????????? | | ???# """ #???????????????????? | | ???? """ #???????????????????? | | ?????? #???????????????????? | | ?????#+#+##;###;######n### ??? | | ?????# A % ?? | | ?????# n ?? | | ?????# @ A n ?? | | ?????###/;;;; ;;;;########??????? | | ??????? ; ; ;;#??###????????? | | ??????? [#!###! #????????? | | ?????? # #???? #????????? | | ?????? # ###?? |#????????? | | ?????########=%*+?? #????????? | | ??????##!!#?# ###? #????????? | | ??????#! ### ###? %#????????? | | ??????#! = # = #????????? | | ??????#! # #????????? | | ??????#! + #????????? | | ??????##!! # #????????? | | ???????#### !!# #????????? | | ??????????## !##? #????????? | | ???????????# !#??######????????? | | ???????????# % #????????????????? | | ############ [ #????????????????? | | # =# #????????????????? | | # =!# #????????????????? | | # !# #????????????????? | | # ! + #????????????????? | | # =#!! #????????????????? | | ?########### ##???????????????? | | ??????????# ############+## % | +----------------------------------------------------+ Best States ------------- Heat Dissipation 25 Energy Generation 10 Energy Capacity 250 Matter Stores 300 Matter Capacity 300 Sight Range 18 Terrain Scan Density 10 Additional Mass Support 6 Evasion (%) 40 Item Schematics ----------------- None Robot Schematics ------------------ None Fabricated ------------ Nothing Alien Tech Used ----------------- None Achievements -------------- None Challenges ------------ None Game ------ Seed CombatUtilityStorage Manual? 0 Play Time 00:07:37 Cumulative 65.9 hours Start 2020.05.19 @ 00:55:39 End 2020.05.19 @ 00:59:52 Sessions 1 Manual Loads 0 Difficulty Rogue Special Mode Halloween2019/Abominations Game No. 121 Rogue 121 Adventurer 0 Explorer 0 Win Type - Total 0 Types 0/0/0/0/0/0/0 Lore% 32 Gallery% 44 Achievement% 32 Wizard Run 0 Options --------- ASCII 0 Keyboard 0 Movement Mouse Keybinds 0 Fullscreen 2 Font 18/SmallcapsGlow Map View 76x50 Tactical HUD 1 Map Filters NONE Filters NONE Steam 1 RUN: 05de4648-a7d5-4833-8acc-ad6cfdcce23d